Local Authority,Detailed Expense Type,Supplier Name,,Transaction Number,Payment Date,Expense Category,Invoice Value (Net)
TWFRS FIRE AUTHORITY,CAP MAIN CONTRACTOR EXTERNAL,ABBEY FIRE UK LTD,1036720,6000552311,01.03.2024,REVENUE,-796.98
TWFRS FIRE AUTHORITY,CAP MAIN CONTRACTOR EXTERNAL,AIR TECHNIQUE LIMITED,1047346,6000552489,05.03.2024,REVENUE,"-98,751.60"
TWFRS FIRE AUTHORITY,CAP MAIN CONTRACTOR EXTERNAL,AIR TECHNIQUE LIMITED,1047346,6000553146,13.03.2024,REVENUE,"-4,536.00"
TWFRS FIRE AUTHORITY,CAP MAIN CONTRACTOR EXTERNAL,AIR TECHNIQUE LIMITED,1047346,6000552397,04.03.2024,REVENUE,"-1,096.80"
TWFRS FIRE AUTHORITY,CAP MAIN CONTRACTOR EXTERNAL,AIR TECHNIQUE LIMITED,1047346,5115208689,04.03.2024,CAPITAL,914.00
TWFRS FIRE AUTHORITY,CAP MAIN CONTRACTOR EXTERNAL,AIR TECHNIQUE LIMITED,1047346,5115208688,13.03.2024,CAPITAL,"3,780.00"
TWFRS FIRE AUTHORITY,CAP MAIN CONTRACTOR EXTERNAL,AIR TECHNIQUE LIMITED,1047346,5115208686,05.03.2024,REVENUE,"7,419.00"
TWFRS FIRE AUTHORITY,CAP MAIN CONTRACTOR EXTERNAL,AIR TECHNIQUE LIMITED,1047346,5115207004,05.03.2024,CAPITAL,"74,874.00"
TWFRS FIRE AUTHORITY,COMM & COMP - CONSUMABLES AND RUNNING CO,AIRWAVE SOLUTIONS LIMITED,1028692,6000553137,13.03.2024,REVENUE,"-2,075.52"
TWFRS FIRE AUTHORITY,COMM & COMP - CONSUMABLES AND RUNNING CO,AIRWAVE SOLUTIONS LIMITED,1028692,5115208890,13.03.2024,REVENUE,"1,729.60"
TWFRS FIRE AUTHORITY,LEGAL FEES / COURT FEES,ALAN BALDWIN SERVICES LIMITED,1047539,6000552398,04.03.2024,REVENUE,"-13,740.00"
TWFRS FIRE AUTHORITY,LEGAL FEES / COURT FEES,ALAN BALDWIN SERVICES LIMITED,1047539,5115208631,04.03.2024,REVENUE,"11,450.00"
TWFRS FIRE AUTHORITY,TRANSPORT EXPENSES - SPECIALIST CONTRACT,ALBANY MOTORS,1000444,6000553427,21.03.2024,REVENUE,-575.00
TWFRS FIRE AUTHORITY,TRANSPORT REPAIRS & MAINTENANCE,ALCOR HANDLING SOLUTIONS LTD,1030794,6000553261,18.03.2024,REVENUE,-751.57
TWFRS FIRE AUTHORITY,TRANSPORT REPAIRS & MAINTENANCE,ALCOR HANDLING SOLUTIONS LTD,1030794,5115208992,18.03.2024,REVENUE,626.31
TWFRS FIRE AUTHORITY,PETROL/DIESEL/FUEL,ALLSTAR BUSINESS SOLUTIONS LTD,1034254,6000553440,21.03.2024,REVENUE,"-2,289.28"
TWFRS FIRE AUTHORITY,PETROL/DIESEL/FUEL,ALLSTAR BUSINESS SOLUTIONS LTD,1034254,6000552476,05.03.2024,REVENUE,"-1,359.91"
TWFRS FIRE AUTHORITY,PETROL/DIESEL/FUEL,ALLSTAR BUSINESS SOLUTIONS LTD,1034254,5115208709,05.03.2024,REVENUE,"1,133.26"
TWFRS FIRE AUTHORITY,PETROL/DIESEL/FUEL,ALLSTAR BUSINESS SOLUTIONS LTD,1034254,5115209045,21.03.2024,REVENUE,"1,907.73"
TWFRS FIRE AUTHORITY,WATER,ANGLIAN WATER BUSINESS (NATIONAL) L,1041310,6000553226,15.03.2024,REVENUE,"-3,409.40"
TWFRS FIRE AUTHORITY,WATER,ANGLIAN WATER BUSINESS (NATIONAL) L,1041310,6000553891,28.03.2024,REVENUE,-976.67
TWFRS FIRE AUTHORITY,WATER,ANGLIAN WATER BUSINESS (NATIONAL) L,1041310,5115209174,27.03.2024,REVENUE,-976.67
TWFRS FIRE AUTHORITY,WATER,ANGLIAN WATER BUSINESS (NATIONAL) L,1041310,6000553823,27.03.2024,REVENUE,-566.96
TWFRS FIRE AUTHORITY,WATER,ANGLIAN WATER BUSINESS (NATIONAL) L,1041310,5115208973,15.03.2024,REVENUE,523.50
TWFRS FIRE AUTHORITY,WATER,ANGLIAN WATER BUSINESS (NATIONAL) L,1041310,5115208964,15.03.2024,REVENUE,552.37
TWFRS FIRE AUTHORITY,WATER,ANGLIAN WATER BUSINESS (NATIONAL) L,1041310,5115209172,27.03.2024,REVENUE,566.96
TWFRS FIRE AUTHORITY,WATER,ANGLIAN WATER BUSINESS (NATIONAL) L,1041310,5115208963,15.03.2024,REVENUE,974.82
TWFRS FIRE AUTHORITY,WATER,ANGLIAN WATER BUSINESS (NATIONAL) L,1041310,5115209173,27.03.2024,REVENUE,976.67
TWFRS FIRE AUTHORITY,WATER,ANGLIAN WATER BUSINESS (NATIONAL) L,1041310,5115209175,28.03.2024,REVENUE,976.67
TWFRS FIRE AUTHORITY,SUBSCRIPTIONS,ASIAN FIRE SERVICE ASSOCIATION,1028876,6000553439,21.03.2024,REVENUE,-685.00
TWFRS FIRE AUTHORITY,SUBSCRIPTIONS,ASIAN FIRE SERVICE ASSOCIATION,1028876,5115209067,21.03.2024,REVENUE,685.00
TWFRS FIRE AUTHORITY,EQUIPMENT MAINTENANCE / REPAIR,AUK (RPE) LIMITED,1001113,6000553028,12.03.2024,REVENUE,"-3,958.16"
TWFRS FIRE AUTHORITY,EQUIPMENT MAINTENANCE / REPAIR,AUK (RPE) LIMITED,1001113,6000553303,19.03.2024,REVENUE,"-3,132.00"
TWFRS FIRE AUTHORITY,EQUIPMENT MAINTENANCE / REPAIR,AUK (RPE) LIMITED,1001113,5115208978,19.03.2024,REVENUE,"2,610.00"
TWFRS FIRE AUTHORITY,EQUIPMENT MAINTENANCE / REPAIR,AUK (RPE) LIMITED,1001113,5115208906,12.03.2024,REVENUE,"3,298.47"
TWFRS FIRE AUTHORITY,CATERING - PROVISIONS/CONSUMABLES,BATLEYS,1035220,6000553738,26.03.2024,REVENUE,"-1,328.16"
TWFRS FIRE AUTHORITY,CATERING - PROVISIONS/CONSUMABLES,BATLEYS,1035220,5115209146,26.03.2024,REVENUE,898.17
TWFRS FIRE AUTHORITY,CAP COMPUTER EQUIPMENT,BECHTLE DIRECT LTD UK,1006757,6000553884,28.03.2024,REVENUE,"-1,302.08"
TWFRS FIRE AUTHORITY,CAP COMPUTER EQUIPMENT,BECHTLE DIRECT LTD UK,1006757,5115209163,28.03.2024,REVENUE,"1,085.07"
TWFRS FIRE AUTHORITY,TRANSPORT REPAIRS & MAINTENANCE,BELL TRUCK SALES LTD,1001255,6000553370,20.03.2024,REVENUE,"-1,137.60"
TWFRS FIRE AUTHORITY,TRANSPORT REPAIRS & MAINTENANCE,BELL TRUCK SALES LTD,1001255,5115209035,20.03.2024,REVENUE,948.00
TWFRS FIRE AUTHORITY,"REPS, ALTS & MAINT-HEALTH & SAFETY AT WO",BES GROUP ELECTRICAL LTD,1046074,6000553676,25.03.2024,REVENUE,"-1,977.31"
TWFRS FIRE AUTHORITY,"REPS, ALTS & MAINT-HEALTH & SAFETY AT WO",BES GROUP ELECTRICAL LTD,1046074,5115207892,25.03.2024,REVENUE,566.16
TWFRS FIRE AUTHORITY,"REPS, ALTS & MAINT-HEALTH & SAFETY AT WO",BES GROUP ELECTRICAL LTD,1046074,5115207875,25.03.2024,REVENUE,"1,081.60"
TWFRS FIRE AUTHORITY,EQUIPMENT MAINTENANCE / REPAIR,BOC LIMITED,1002137,6000552385,04.03.2024,REVENUE,"-1,165.38"
TWFRS FIRE AUTHORITY,EQUIPMENT MAINTENANCE / REPAIR,BOC LIMITED,1002137,5115208680,04.03.2024,REVENUE,971.15
TWFRS FIRE AUTHORITY,CLOTHING/PROTECTIVE CLOTHING,BRISTOL UNIFORMS LTD,1001643,6000552670,07.03.2024,REVENUE,"-51,037.43"
TWFRS FIRE AUTHORITY,CLOTHING/PROTECTIVE CLOTHING,BRISTOL UNIFORMS LTD,1001643,6000552803,08.03.2024,REVENUE,"-35,094.97"
TWFRS FIRE AUTHORITY,CLOTHING/PROTECTIVE CLOTHING,BRISTOL UNIFORMS LTD,1001643,5115208793,07.03.2024,REVENUE,"-31,648.64"
TWFRS FIRE AUTHORITY,CLOTHING/PROTECTIVE CLOTHING,BRISTOL UNIFORMS LTD,1001643,6000553878,28.03.2024,REVENUE,"-3,582.14"
TWFRS FIRE AUTHORITY,CLOTHING/PROTECTIVE CLOTHING,BRISTOL UNIFORMS LTD,1001643,6000552933,11.03.2024,REVENUE,"-1,542.10"
TWFRS FIRE AUTHORITY,CLOTHING/PROTECTIVE CLOTHING,BRISTOL UNIFORMS LTD,1001643,5115208798,07.03.2024,REVENUE,"1,536.81"
TWFRS FIRE AUTHORITY,CLOTHING/PROTECTIVE CLOTHING,BRISTOL UNIFORMS LTD,1001643,5115208808,08.03.2024,REVENUE,"2,976.00"
TWFRS FIRE AUTHORITY,CLOTHING/PROTECTIVE CLOTHING,BRISTOL UNIFORMS LTD,1001643,5115209156,28.03.2024,REVENUE,"2,985.12"
TWFRS FIRE AUTHORITY,CLOTHING/PROTECTIVE CLOTHING,BRISTOL UNIFORMS LTD,1001643,5115208810,08.03.2024,REVENUE,"3,137.77"
TWFRS FIRE AUTHORITY,CLOTHING/PROTECTIVE CLOTHING,BRISTOL UNIFORMS LTD,1001643,5115208796,07.03.2024,REVENUE,"9,345.74"
TWFRS FIRE AUTHORITY,CLOTHING/PROTECTIVE CLOTHING,BRISTOL UNIFORMS LTD,1001643,5115208807,08.03.2024,REVENUE,"11,396.40"
TWFRS FIRE AUTHORITY,CLOTHING/PROTECTIVE CLOTHING,BRISTOL UNIFORMS LTD,1001643,5115208811,08.03.2024,REVENUE,"11,735.64"
TWFRS FIRE AUTHORITY,CLOTHING/PROTECTIVE CLOTHING,BRISTOL UNIFORMS LTD,1001643,5115206950,07.03.2024,REVENUE,"31,648.64"
TWFRS FIRE AUTHORITY,CLOTHING/PROTECTIVE CLOTHING,BRISTOL UNIFORMS LTD,1001643,5115208794,07.03.2024,REVENUE,"31,648.64"
TWFRS FIRE AUTHORITY,COMMUNICATION - MAINTENANCE / REPAIR COS,BRITISH TELECOMMUNICATIONS PLC,1003438,6000552568,06.03.2024,REVENUE,"-15,581.21"
TWFRS FIRE AUTHORITY,COMMUNICATION - MAINTENANCE / REPAIR COS,BRITISH TELECOMMUNICATIONS PLC,1003438,5115208730,06.03.2024,REVENUE,"1,273.77"
TWFRS FIRE AUTHORITY,COMMUNICATION - MAINTENANCE / REPAIR COS,BRITISH TELECOMMUNICATIONS PLC,1003438,5115208704,06.03.2024,REVENUE,"11,710.58"
TWFRS FIRE AUTHORITY,"REPAIRS, ROUTINE STATIC FIXED PLANT -P",BUILDING MANAGEMENT,1045435,6000553895,28.03.2024,REVENUE,-708.00
TWFRS FIRE AUTHORITY,"REPAIRS, ROUTINE STATIC FIXED PLANT -P",BUILDING MANAGEMENT,1045435,5115209168,28.03.2024,REVENUE,590.00
TWFRS FIRE AUTHORITY,EQUIPMENT - SPECIALIST,BUS AND TRUCK PARTS (NE) LTD,1041392,6000553140,13.03.2024,REVENUE,-765.56
TWFRS FIRE AUTHORITY,EQUIPMENT - SPECIALIST,BUS AND TRUCK PARTS (NE) LTD,1041392,6000552315,01.03.2024,REVENUE,-620.39
TWFRS FIRE AUTHORITY,EQUIPMENT - SPECIALIST,BUS AND TRUCK PARTS (NE) LTD,1041392,6000553321,19.03.2024,REVENUE,-595.68
TWFRS FIRE AUTHORITY,COMM & COMP - CONSUMABLES AND RUNNING CO,CANON (UK) LIMITED,1001136,6000553304,19.03.2024,REVENUE,"-2,509.20"
TWFRS FIRE AUTHORITY,COMM & COMP - CONSUMABLES AND RUNNING CO,CANON (UK) LIMITED,1001136,5115209007,19.03.2024,REVENUE,"2,091.00"
TWFRS FIRE AUTHORITY,PUBLICITY,CDP PRINT MANAGEMENT,1044314,6000552481,05.03.2024,REVENUE,"-1,769.76"
TWFRS FIRE AUTHORITY,PUBLICITY,CDP PRINT MANAGEMENT,1044314,5115208632,05.03.2024,REVENUE,"1,474.80"
TWFRS FIRE AUTHORITY,CAP EQUIPMENT,CENTIANT INTL LTD,1044755,6000553894,28.03.2024,REVENUE,"-2,915.65"
TWFRS FIRE AUTHORITY,CAP EQUIPMENT,CENTIANT INTL LTD,1044755,5115209158,28.03.2024,REVENUE,"2,429.70"
TWFRS FIRE AUTHORITY,MAIN CONTRACTOR EXTERNAL,CHUBB FIRE & SECURITY LTD,1005970,6000553033,12.03.2024,REVENUE,"-2,720.40"
TWFRS FIRE AUTHORITY,MAIN CONTRACTOR EXTERNAL,CHUBB FIRE & SECURITY LTD,1005970,5115208871,12.03.2024,CAPITAL,"2,267.00"
TWFRS FIRE AUTHORITY,CLEANING SERVICES,CLEAN IT UK,1008597,6000553732,26.03.2024,REVENUE,-744.00
TWFRS FIRE AUTHORITY,CLEANING SERVICES,CLEAN IT UK,1008597,5115209094,26.03.2024,REVENUE,620.00
TWFRS FIRE AUTHORITY,EQUIPMENT OPERATIONAL,COLD CUT SYSTEMS LTD,1038181,6000552944,11.03.2024,REVENUE,"-1,259.00"
TWFRS FIRE AUTHORITY,EQUIPMENT OPERATIONAL,COLD CUT SYSTEMS LTD,1038181,5115208874,11.03.2024,REVENUE,"1,049.17"
TWFRS FIRE AUTHORITY,ELECTRICITY,DEAN & CO ESTATES LTD,1047729,6000552799,08.03.2024,REVENUE,"-7,301.52"
TWFRS FIRE AUTHORITY,ELECTRICITY,DEAN & CO ESTATES LTD,1047729,6000552667,07.03.2024,REVENUE,"-6,023.52"
TWFRS FIRE AUTHORITY,ELECTRICITY,DEAN & CO ESTATES LTD,1047729,6000552588,06.03.2024,REVENUE,"-3,535.21"
TWFRS FIRE AUTHORITY,ELECTRICITY,DEAN & CO ESTATES LTD,1047729,5115208741,06.03.2024,REVENUE,"2,946.01"
TWFRS FIRE AUTHORITY,ELECTRICITY,DEAN & CO ESTATES LTD,1047729,5115208771,07.03.2024,REVENUE,"6,023.52"
TWFRS FIRE AUTHORITY,ELECTRICITY,DEAN & CO ESTATES LTD,1047729,5115208769,08.03.2024,REVENUE,"7,081.20"
TWFRS FIRE AUTHORITY,"REPAIRS, ALTERATIONS AND IMPROVEMENTS",DEERNESS FENCING & LANDSCAPING LTD,3000046,6000552589,06.03.2024,REVENUE,"-1,139.20"
TWFRS FIRE AUTHORITY,"REPAIRS, ALTERATIONS AND IMPROVEMENTS",DEERNESS FENCING & LANDSCAPING LTD,3000046,5115208722,06.03.2024,REVENUE,949.33
TWFRS FIRE AUTHORITY,COMM & COMP - HARDWARE AND SOFTWARE,DELL CORPORATION LIMITED,1001826,6000553879,28.03.2024,REVENUE,"-1,665.82"
TWFRS FIRE AUTHORITY,COMM & COMP - HARDWARE AND SOFTWARE,DELL CORPORATION LIMITED,1001826,5115209135,28.03.2024,REVENUE,"1,388.18"
TWFRS FIRE AUTHORITY,EQUIPMENT MAINTENANCE / REPAIR,DRAEGER LIMITED,1015078,6000553733,26.03.2024,REVENUE,-821.38
TWFRS FIRE AUTHORITY,EQUIPMENT MAINTENANCE / REPAIR,DRAEGER LIMITED,1015078,6000552780,08.03.2024,REVENUE,-747.38
TWFRS FIRE AUTHORITY,EQUIPMENT MAINTENANCE / REPAIR,DRAEGER LIMITED,1015078,5115208772,08.03.2024,REVENUE,563.82
TWFRS FIRE AUTHORITY,EQUIPMENT MAINTENANCE / REPAIR,DRAEGER LIMITED,1015078,5115209083,26.03.2024,REVENUE,684.48
TWFRS FIRE AUTHORITY,"REPAIRS, ROUTINE STATIC FIXED PLANT -P",DURHAM COUNTY COUNCIL,1033659,6000552580,06.03.2024,REVENUE,-941.40
TWFRS FIRE AUTHORITY,"REPAIRS, ROUTINE STATIC FIXED PLANT -P",DURHAM COUNTY COUNCIL,1033659,5115208731,06.03.2024,REVENUE,784.50
TWFRS FIRE AUTHORITY,TRAINING EXPS - UNIFORM,DURHAMS TRANSPORT TRAINING LTD,1042267,6000552947,11.03.2024,REVENUE,"-1,788.00"
TWFRS FIRE AUTHORITY,TRAINING EXPS - UNIFORM,DURHAMS TRANSPORT TRAINING LTD,1042267,5115208875,11.03.2024,REVENUE,"1,528.00"
TWFRS FIRE AUTHORITY,DEVELOPMENT COSTS,E H ADVERTISING LIMITED,1028719,6000553175,14.03.2024,REVENUE,"-10,008.00"
TWFRS FIRE AUTHORITY,DEVELOPMENT COSTS,E H ADVERTISING LIMITED,1028719,6000553260,18.03.2024,REVENUE,"-6,246.00"
TWFRS FIRE AUTHORITY,DEVELOPMENT COSTS,E H ADVERTISING LIMITED,1028719,6000552390,04.03.2024,REVENUE,-918.00
TWFRS FIRE AUTHORITY,DEVELOPMENT COSTS,E H ADVERTISING LIMITED,1028719,6000553438,21.03.2024,REVENUE,-540.00
TWFRS FIRE AUTHORITY,DEVELOPMENT COSTS,E H ADVERTISING LIMITED,1028719,5115208678,04.03.2024,REVENUE,765.00
TWFRS FIRE AUTHORITY,DEVELOPMENT COSTS,E H ADVERTISING LIMITED,1028719,5115208996,18.03.2024,REVENUE,810.00
TWFRS FIRE AUTHORITY,DEVELOPMENT COSTS,E H ADVERTISING LIMITED,1028719,5115208998,18.03.2024,REVENUE,"1,020.00"
TWFRS FIRE AUTHORITY,DEVELOPMENT COSTS,E H ADVERTISING LIMITED,1028719,5115208923,14.03.2024,REVENUE,"1,380.00"
TWFRS FIRE AUTHORITY,DEVELOPMENT COSTS,E H ADVERTISING LIMITED,1028719,5115208924,14.03.2024,REVENUE,"1,680.00"
TWFRS FIRE AUTHORITY,DEVELOPMENT COSTS,E H ADVERTISING LIMITED,1028719,5115208921,14.03.2024,REVENUE,"2,550.00"
TWFRS FIRE AUTHORITY,DEVELOPMENT COSTS,E H ADVERTISING LIMITED,1028719,5115208922,14.03.2024,REVENUE,"2,730.00"
TWFRS FIRE AUTHORITY,DEVELOPMENT COSTS,E H ADVERTISING LIMITED,1028719,5115208999,18.03.2024,REVENUE,"2,940.00"
TWFRS FIRE AUTHORITY,TRANSPORT REPAIRS & MAINTENANCE,E P BARRUS LTD,1037285,6000552789,08.03.2024,REVENUE,-522.43
TWFRS FIRE AUTHORITY,MAIN CONTRACTOR EXTERNAL,ESH CONSTRUCTION LTD,3000134,6000553390,20.03.2024,REVENUE,"-861,923.92"
TWFRS FIRE AUTHORITY,MAIN CONTRACTOR EXTERNAL,ESH CONSTRUCTION LTD,3000134,5115209040,20.03.2024,CAPITAL,"718,269.93"
TWFRS FIRE AUTHORITY,EQUIPMENT - SPECIALIST,EURO CAR PARTS,1045583,6000552666,07.03.2024,REVENUE,-756.53
TWFRS FIRE AUTHORITY,TRAINING EQUIPMENT PURCHASED BY HQ TRAIN,FIREANGEL SAFETY TECHNOLOGY LIMITED,1032100,6000553219,15.03.2024,REVENUE,"-15,984.00"
TWFRS FIRE AUTHORITY,TRAINING EQUIPMENT PURCHASED BY HQ TRAIN,FIREANGEL SAFETY TECHNOLOGY LIMITED,1032100,5115208967,15.03.2024,REVENUE,"13,320.00"
TWFRS FIRE AUTHORITY,TRANSPORT REPAIRS & MAINTENANCE,FORD AND SLATER LIMITED,1047815,6000553897,28.03.2024,REVENUE,"-2,352.00"
TWFRS FIRE AUTHORITY,TRANSPORT REPAIRS & MAINTENANCE,FORD AND SLATER LIMITED,1047815,5115209184,28.03.2024,REVENUE,652.50
TWFRS FIRE AUTHORITY,INSURANCE - OTHER,SUNDERLAND CITY COUNCIL,GENERAL,6000552802,08.03.2024,REVENUE,"-4,170.00"
TWFRS FIRE AUTHORITY,INSURANCE - OTHER,SUNDERLAND CITY COUNCIL,GENERAL,6000552487,05.03.2024,REVENUE,"-1,185.14"
TWFRS FIRE AUTHORITY,INSURANCE - OTHER,SUNDERLAND CITY COUNCIL,GENERAL,3300005021,05.03.2024,REVENUE,"1,185.14"
TWFRS FIRE AUTHORITY,INSURANCE - OTHER,SUNDERLAND CITY COUNCIL,GENERAL,3300005025,08.03.2024,REVENUE,"4,170.00"
TWFRS FIRE AUTHORITY,CLOTHING/PROTECTIVE CLOTHING,GIFFARD NEWTON & SOMS LTD,1001343,6000553306,19.03.2024,REVENUE,"-2,995.86"
TWFRS FIRE AUTHORITY,CLOTHING/PROTECTIVE CLOTHING,GIFFARD NEWTON & SOMS LTD,1001343,6000552564,06.03.2024,REVENUE,"-1,438.20"
TWFRS FIRE AUTHORITY,CLOTHING/PROTECTIVE CLOTHING,GIFFARD NEWTON & SOMS LTD,1001343,6000553371,20.03.2024,REVENUE,-826.80
TWFRS FIRE AUTHORITY,CLOTHING/PROTECTIVE CLOTHING,GIFFARD NEWTON & SOMS LTD,1001343,5115209026,20.03.2024,REVENUE,609.50
TWFRS FIRE AUTHORITY,CLOTHING/PROTECTIVE CLOTHING,GIFFARD NEWTON & SOMS LTD,1001343,5115209009,19.03.2024,REVENUE,721.05
TWFRS FIRE AUTHORITY,CLOTHING/PROTECTIVE CLOTHING,GIFFARD NEWTON & SOMS LTD,1001343,5115209011,19.03.2024,REVENUE,742.00
TWFRS FIRE AUTHORITY,CLOTHING/PROTECTIVE CLOTHING,GIFFARD NEWTON & SOMS LTD,1001343,5115209010,19.03.2024,REVENUE,"1,033.50"
TWFRS FIRE AUTHORITY,CLOTHING/PROTECTIVE CLOTHING,GIFFARD NEWTON & SOMS LTD,1001343,5115208747,06.03.2024,REVENUE,"1,198.50"
TWFRS FIRE AUTHORITY,EQUIPMENT - SPECIALIST,GODIVA LIMITED,1000995,6000552384,04.03.2024,REVENUE,"-1,890.80"
TWFRS FIRE AUTHORITY,EQUIPMENT - SPECIALIST,GODIVA LIMITED,1000995,6000552931,11.03.2024,REVENUE,"-1,419.56"
TWFRS FIRE AUTHORITY,EQUIPMENT - SPECIALIST,GODIVA LIMITED,1000995,6000553369,20.03.2024,REVENUE,"-1,044.50"
TWFRS FIRE AUTHORITY,EQUIPMENT - SPECIALIST,GODIVA LIMITED,1000995,6000553429,21.03.2024,REVENUE,-764.52
TWFRS FIRE AUTHORITY,EQUIPMENT - SPECIALIST,GODIVA LIMITED,1000995,5115209039,20.03.2024,REVENUE,621.08
TWFRS FIRE AUTHORITY,EQUIPMENT - SPECIALIST,GODIVA LIMITED,1000995,5115208891,21.03.2024,REVENUE,637.10
TWFRS FIRE AUTHORITY,EQUIPMENT - SPECIALIST,GODIVA LIMITED,1000995,5115208848,11.03.2024,REVENUE,"1,182.96"
TWFRS FIRE AUTHORITY,EQUIPMENT - SPECIALIST,GODIVA LIMITED,1000995,5115208255,04.03.2024,REVENUE,"1,575.68"
TWFRS FIRE AUTHORITY,EQUIPMENT MAINTENANCE / REPAIR,GREENHAM,1005105,6000552775,08.03.2024,REVENUE,-983.27
TWFRS FIRE AUTHORITY,EQUIPMENT MAINTENANCE / REPAIR,GREENHAM LIMITED,1002719,5115208750,08.03.2024,REVENUE,774.80
TWFRS FIRE AUTHORITY,PRINTING FROM EXTERNAL SUPPLIERS,HARLOW PRINTING LIMITED,1036566,6000553319,19.03.2024,REVENUE,-510.26
TWFRS FIRE AUTHORITY,TRANSPORT REPAIRS & MAINTENANCE,HI-Q TYRE SERVICES,1005240,6000553032,12.03.2024,REVENUE,"-1,368.41"
TWFRS FIRE AUTHORITY,TRANSPORT REPAIRS & MAINTENANCE,HI-Q TYRE SERVICES,1005240,5115208785,12.03.2024,REVENUE,767.80
TWFRS FIRE AUTHORITY,CLOTHING - UNIFORM,HUNTER APPAREL SOLUTIONS LTD,1016941,6000553810,27.03.2024,REVENUE,"-32,346.60"
TWFRS FIRE AUTHORITY,CLOTHING - UNIFORM,HUNTER APPAREL SOLUTIONS LTD,1016941,5115206625,27.03.2024,REVENUE,"26,955.50"
TWFRS FIRE AUTHORITY,SERVICES - FEES,IMPROVEMENT & DEVELOPMENT AGENCY,1038589,6000552661,07.03.2024,REVENUE,"-1,395.35"
TWFRS FIRE AUTHORITY,SERVICES - FEES,IMPROVEMENT & DEVELOPMENT AGENCY,1038589,5115208781,07.03.2024,REVENUE,"1,162.79"
TWFRS FIRE AUTHORITY,COMPUTER DEVELOPMENT,INSIGHT DIRECT (UK) LTD,1003445,6000553725,26.03.2024,REVENUE,"-1,516.61"
TWFRS FIRE AUTHORITY,COMPUTER DEVELOPMENT,INSIGHT DIRECT (UK) LTD,1003445,5115208804,26.03.2024,REVENUE,"1,263.84"
TWFRS FIRE AUTHORITY,TRANSPORT REPAIRS & MAINTENANCE,INTELLITEC MV LTD,1030183,6000553666,25.03.2024,REVENUE,"-1,099.26"
TWFRS FIRE AUTHORITY,TRANSPORT REPAIRS & MAINTENANCE,INTELLITEC MV LTD,1030183,5115209063,25.03.2024,REVENUE,916.05
TWFRS FIRE AUTHORITY,"REPAIRS, ROUTINE STATIC FIXED PLANT -P",SUNDERLAND CITY COUNCIL,7000003,6000552320,01.03.2024,REVENUE,"-3,053.99"
TWFRS FIRE AUTHORITY,"REPAIRS, ROUTINE STATIC FIXED PLANT -P",SUNDERLAND CITY COUNCIL,7000003,6000553965,29.03.2024,REVENUE,"-2,726.92"
TWFRS FIRE AUTHORITY,"REPAIRS, ROUTINE STATIC FIXED PLANT -P",SUNDERLAND CITY COUNCIL,7000003,6000553126,12.03.2024,REVENUE,"-2,527.84"
TWFRS FIRE AUTHORITY,"REPAIRS, ROUTINE STATIC FIXED PLANT -P",SUNDERLAND CITY COUNCIL,7000003,5115208902,12.03.2024,REVENUE,562.80
TWFRS FIRE AUTHORITY,"REPAIRS, ROUTINE STATIC FIXED PLANT -P",SUNDERLAND CITY COUNCIL,7000003,5115209193,29.03.2024,REVENUE,618.92
TWFRS FIRE AUTHORITY,"REPAIRS, ROUTINE STATIC FIXED PLANT -P",SUNDERLAND CITY COUNCIL,7000003,5115208408,01.03.2024,REVENUE,710.43
TWFRS FIRE AUTHORITY,"REPAIRS, ROUTINE STATIC FIXED PLANT -P",SUNDERLAND CITY COUNCIL,7000003,5115208444,01.03.2024,REVENUE,728.56
TWFRS FIRE AUTHORITY,"REPAIRS, ROUTINE STATIC FIXED PLANT -P",SUNDERLAND CITY COUNCIL,7000003,5115208410,01.03.2024,REVENUE,"1,025.75"
TWFRS FIRE AUTHORITY,"REPAIRS, ROUTINE STATIC FIXED PLANT -P",SUNDERLAND CITY COUNCIL,7000003,5115208903,12.03.2024,REVENUE,"1,172.64"
TWFRS FIRE AUTHORITY,"REPAIRS, ROUTINE STATIC FIXED PLANT -P",SUNDERLAND CITY COUNCIL,7000003,5115209198,29.03.2024,REVENUE,"1,935.49"
TWFRS FIRE AUTHORITY,REPAIRS AND MAINTENANCE OF FIXTURES & FI,JAMES BURRELL LTD,1001403,6000553652,25.03.2024,REVENUE,-598.80
TWFRS FIRE AUTHORITY,REPAIRS AND MAINTENANCE OF FIXTURES & FI,JC MAINTENANCE SERVICES LTD,1031754,6000552308,01.03.2024,REVENUE,"-5,079.48"
TWFRS FIRE AUTHORITY,REPAIRS AND MAINTENANCE OF FIXTURES & FI,JC MAINTENANCE SERVICES LTD,1031754,6000552785,08.03.2024,REVENUE,"-4,302.31"
TWFRS FIRE AUTHORITY,REPAIRS AND MAINTENANCE OF FIXTURES & FI,JC MAINTENANCE SERVICES LTD,1031754,6000553138,13.03.2024,REVENUE,"-1,508.94"
TWFRS FIRE AUTHORITY,REPAIRS AND MAINTENANCE OF FIXTURES & FI,JC MAINTENANCE SERVICES LTD,1031754,5115208821,13.03.2024,REVENUE,"1,257.45"
TWFRS FIRE AUTHORITY,REPAIRS AND MAINTENANCE OF FIXTURES & FI,JC MAINTENANCE SERVICES LTD,1031754,5115208611,01.03.2024,REVENUE,"1,336.61"
TWFRS FIRE AUTHORITY,REPAIRS AND MAINTENANCE OF FIXTURES & FI,JC MAINTENANCE SERVICES LTD,1031754,5115208596,01.03.2024,REVENUE,"1,380.29"
TWFRS FIRE AUTHORITY,REPAIRS AND MAINTENANCE OF FIXTURES & FI,JC MAINTENANCE SERVICES LTD,1031754,5115208823,08.03.2024,REVENUE,"3,585.26"
TWFRS FIRE AUTHORITY,MAIN CONTRACTOR EXTERNAL,JET AIRE (DC) LIMITED,1001929,6000553030,12.03.2024,REVENUE,"-6,882.00"
TWFRS FIRE AUTHORITY,MAIN CONTRACTOR EXTERNAL,JET AIRE (DC) LIMITED,1001929,6000552935,11.03.2024,REVENUE,"-1,722.00"
TWFRS FIRE AUTHORITY,MAIN CONTRACTOR EXTERNAL,JET AIRE (DC) LIMITED,1001929,5115208847,11.03.2024,REVENUE,"1,435.00"
TWFRS FIRE AUTHORITY,MAIN CONTRACTOR EXTERNAL,JET AIRE (DC) LIMITED,1001929,5115208909,12.03.2024,REVENUE,"5,735.00"
TWFRS FIRE AUTHORITY,"REPAIRS, ROUTINE STATIC FIXED PLANT -P",JH MECHANICAL SERVICES LTD,1045267,6000553825,27.03.2024,REVENUE,"-1,341.60"
TWFRS FIRE AUTHORITY,"REPAIRS, ROUTINE STATIC FIXED PLANT -P",JH MECHANICAL SERVICES LTD,1045267,6000553228,15.03.2024,REVENUE,"-1,101.25"
TWFRS FIRE AUTHORITY,"REPAIRS, ROUTINE STATIC FIXED PLANT -P",JH MECHANICAL SERVICES LTD,1045267,6000552484,05.03.2024,REVENUE,-644.16
TWFRS FIRE AUTHORITY,"REPAIRS, ROUTINE STATIC FIXED PLANT -P",JH MECHANICAL SERVICES LTD,1045267,5115208640,05.03.2024,REVENUE,536.80
TWFRS FIRE AUTHORITY,"REPAIRS, ROUTINE STATIC FIXED PLANT -P",JH MECHANICAL SERVICES LTD,1045267,5115208664,15.03.2024,REVENUE,917.71
TWFRS FIRE AUTHORITY,"REPAIRS, ROUTINE STATIC FIXED PLANT -P",JH MECHANICAL SERVICES LTD,1045267,5115209092,27.03.2024,REVENUE,"1,118.00"
TWFRS FIRE AUTHORITY,COMPUTER EQUIPMENT,JIGSAW 24,1032751,6000553819,27.03.2024,REVENUE,"-13,680.00"
TWFRS FIRE AUTHORITY,COMPUTER EQUIPMENT,JIGSAW 24,1032751,5115209126,27.03.2024,CAPITAL,"1,995.00"
TWFRS FIRE AUTHORITY,COMPUTER EQUIPMENT,JIGSAW 24,1032751,5115209125,27.03.2024,CAPITAL,"9,405.00"
TWFRS FIRE AUTHORITY,CONTRACT TRAINING,K LAMB ASSOCIATES LTD,1042987,6000553824,27.03.2024,REVENUE,"-7,500.00"
TWFRS FIRE AUTHORITY,CONTRACT TRAINING,K LAMB ASSOCIATES LTD,1042987,6000553444,21.03.2024,REVENUE,"-6,000.00"
TWFRS FIRE AUTHORITY,CONTRACT TRAINING,K LAMB ASSOCIATES LTD,1042987,5115209015,21.03.2024,REVENUE,"5,000.00"
TWFRS FIRE AUTHORITY,CONTRACT TRAINING,K LAMB ASSOCIATES LTD,1042987,5115209111,27.03.2024,REVENUE,"6,250.00"
TWFRS FIRE AUTHORITY,EDUCATIONAL & TRAINING SERVICES,KESWICK ADVENTURES LTD,1047841,6000552669,07.03.2024,REVENUE,-900.00
TWFRS FIRE AUTHORITY,EDUCATIONAL & TRAINING SERVICES,KESWICK ADVENTURES LTD,1047841,5115208767,07.03.2024,REVENUE,750.00
TWFRS FIRE AUTHORITY,TRAINING,LLOYD MORGAN GROUP,1047821,6000553529,22.03.2024,REVENUE,-972.00
TWFRS FIRE AUTHORITY,TRAINING,LLOYD MORGAN GROUP,1047821,5115209065,22.03.2024,REVENUE,810.00
TWFRS FIRE AUTHORITY,CATERING - PROVISIONS/CONSUMABLES,LOWRIE FOODS LTD,1034269,6000553139,13.03.2024,REVENUE,"-1,215.02"
TWFRS FIRE AUTHORITY,CATERING - PROVISIONS/CONSUMABLES,LOWRIE FOODS LTD,1034269,6000553736,26.03.2024,REVENUE,"-1,200.07"
TWFRS FIRE AUTHORITY,CATERING - PROVISIONS/CONSUMABLES,LOWRIE FOODS LTD,1034269,6000552309,01.03.2024,REVENUE,-993.54
TWFRS FIRE AUTHORITY,CATERING - PROVISIONS/CONSUMABLES,LOWRIE FOODS LTD,1034269,6000552787,08.03.2024,REVENUE,-778.84
TWFRS FIRE AUTHORITY,CATERING - PROVISIONS/CONSUMABLES,LOWRIE FOODS LTD,1034269,5115208638,01.03.2024,REVENUE,574.20
TWFRS FIRE AUTHORITY,CATERING - PROVISIONS/CONSUMABLES,LOWRIE FOODS LTD,1034269,5115209147,26.03.2024,REVENUE,636.71
TWFRS FIRE AUTHORITY,CATERING - PROVISIONS/CONSUMABLES,LOWRIE FOODS LTD,1034269,5115208827,08.03.2024,REVENUE,778.84
TWFRS FIRE AUTHORITY,CATERING - PROVISIONS/CONSUMABLES,LOWRIE FOODS LTD,1034269,5115208941,13.03.2024,REVENUE,"1,187.17"
TWFRS FIRE AUTHORITY,SALARIES - AGENCY STAFF,MAGNIT GLOBAL GRI LIMITED,1038113,6000552943,11.03.2024,REVENUE,"-6,957.73"
TWFRS FIRE AUTHORITY,SALARIES - AGENCY STAFF,MAGNIT GLOBAL GRI LIMITED,1038113,6000553442,21.03.2024,REVENUE,"-1,422.54"
TWFRS FIRE AUTHORITY,SALARIES - AGENCY STAFF,MAGNIT GLOBAL GRI LIMITED,1038113,6000553821,27.03.2024,REVENUE,"-1,422.54"
TWFRS FIRE AUTHORITY,SALARIES - AGENCY STAFF,MAGNIT GLOBAL GRI LIMITED,1038113,5115208855,11.03.2024,REVENUE,"1,185.45"
TWFRS FIRE AUTHORITY,SALARIES - AGENCY STAFF,MAGNIT GLOBAL GRI LIMITED,1038113,5115208857,11.03.2024,REVENUE,"1,185.45"
TWFRS FIRE AUTHORITY,SALARIES - AGENCY STAFF,MAGNIT GLOBAL GRI LIMITED,1038113,5115209064,21.03.2024,REVENUE,"1,185.45"
TWFRS FIRE AUTHORITY,SALARIES - AGENCY STAFF,MAGNIT GLOBAL GRI LIMITED,1038113,5115209166,27.03.2024,REVENUE,"1,185.45"
TWFRS FIRE AUTHORITY,SALARIES - AGENCY STAFF,MAGNIT GLOBAL GRI LIMITED,1038113,5115208858,11.03.2024,REVENUE,"3,427.21"
TWFRS FIRE AUTHORITY,TRAINING EXPS - UNIFORM,MATT SOMERS - COACHING SKILLS TRAIN,1047866,6000553388,20.03.2024,REVENUE,"-2,160.00"
TWFRS FIRE AUTHORITY,TRAINING EXPS - UNIFORM,MATT SOMERS - COACHING SKILLS TRAIN,1047866,5115209029,20.03.2024,REVENUE,"1,800.00"
TWFRS FIRE AUTHORITY,TRAINING EQUIPMENT PURCHASED BY HQ TRAIN,MH SOUTHERN & CO LTD,1001186,6000553430,21.03.2024,REVENUE,"-4,035.60"
TWFRS FIRE AUTHORITY,TRAINING EQUIPMENT PURCHASED BY HQ TRAIN,MH SOUTHERN & CO LTD,1001186,5115209000,21.03.2024,REVENUE,"3,363.00"
TWFRS FIRE AUTHORITY,EQUIPMENT - SPECIALIST,MSA (BRITAIN) LIMITED,1006493,6000552572,06.03.2024,REVENUE,"-1,556.88"
TWFRS FIRE AUTHORITY,EQUIPMENT - SPECIALIST,MSA (BRITAIN) LIMITED,1006493,5115208873,11.03.2024,REVENUE,"1,020.94"
TWFRS FIRE AUTHORITY,EQUIPMENT - SPECIALIST,MSA (BRITAIN) LIMITED,1006493,5115208738,06.03.2024,REVENUE,"1,297.40"
TWFRS FIRE AUTHORITY,CATERING - PROVISIONS/CONSUMABLES,MUNCHIES DELI,1041301,6000552662,07.03.2024,REVENUE,-521.00
TWFRS FIRE AUTHORITY,SUBSCRIPTIONS,NATIONAL FIRE CHIEFS COUNCIL LTD,1000865,6000553428,21.03.2024,REVENUE,"-3,705.60"
TWFRS FIRE AUTHORITY,SUBSCRIPTIONS,NATIONAL FIRE CHIEFS COUNCIL LTD,1000865,6000553255,18.03.2024,REVENUE,-972.00
TWFRS FIRE AUTHORITY,SUBSCRIPTIONS,NATIONAL FIRE CHIEFS COUNCIL LTD,1000865,5115208982,18.03.2024,REVENUE,810.00
TWFRS FIRE AUTHORITY,TRAINING EXPS - UNIFORM,NATIONAL FIRE CHIEFS COUNCIL LTD,1000865,5115209057,21.03.2024,REVENUE,"3,088.00"
TWFRS FIRE AUTHORITY,COMM & COMP CONSUMABLES & RUNNING COSTS,NETREADY LIMITED T/A 360 DEGREE,1040114,6000553443,21.03.2024,REVENUE,"-8,760.00"
TWFRS FIRE AUTHORITY,COMM & COMP CONSUMABLES & RUNNING COSTS,NETREADY LIMITED T/A 360 DEGREE,1040114,5115209022,21.03.2024,REVENUE,"7,300.00"
TWFRS FIRE AUTHORITY,CATERING - PROVISIONS/CONSUMABLES,NISBETS,1017471,6000553662,25.03.2024,REVENUE,-971.93
TWFRS FIRE AUTHORITY,SALARIES - AGENCY STAFF,NORTH EAST AMBULANCE SERVICE NHS TR,1001875,6000553257,18.03.2024,REVENUE,"-5,526.00"
TWFRS FIRE AUTHORITY,SALARIES - AGENCY STAFF,NORTH EAST AMBULANCE SERVICE NHS TR,1001875,5115208953,18.03.2024,REVENUE,"5,526.00"
TWFRS FIRE AUTHORITY,COMMUNICATION - MAINTENANCE / REPAIR COS,NORTHUMBERLAND COUNTY COUNCIL,1005545,6000552804,08.03.2024,REVENUE,"-87,340.97"
TWFRS FIRE AUTHORITY,COMMUNICATION - MAINTENANCE / REPAIR COS,NORTHUMBERLAND COUNTY COUNCIL,1005545,6000553042,12.03.2024,REVENUE,"-80,382.69"
TWFRS FIRE AUTHORITY,COMMUNICATION - MAINTENANCE / REPAIR COS,NORTHUMBERLAND COUNTY COUNCIL,1005545,6000552303,01.03.2024,REVENUE,"-2,778.96"
TWFRS FIRE AUTHORITY,COMMUNICATION - MAINTENANCE / REPAIR COS,NORTHUMBERLAND COUNTY COUNCIL,1005545,5115208568,01.03.2024,REVENUE,"2,778.96"
TWFRS FIRE AUTHORITY,COMMUNICATION - MAINTENANCE / REPAIR COS,NORTHUMBERLAND COUNTY COUNCIL,1005545,3300005026,08.03.2024,REVENUE,"6,877.01"
TWFRS FIRE AUTHORITY,COMMUNICATION - MAINTENANCE / REPAIR COS,NORTHUMBERLAND COUNTY COUNCIL,1005545,3300005029,12.03.2024,REVENUE,"80,382.69"
TWFRS FIRE AUTHORITY,COMMUNICATION - MAINTENANCE / REPAIR COS,NORTHUMBERLAND COUNTY COUNCIL,1005545,3300005023,08.03.2024,REVENUE,"80,463.96"
TWFRS FIRE AUTHORITY,SERVICES - FEES,NORTHUMBRIA  HEALTHCARE,1029802,6000552488,05.03.2024,REVENUE,"-19,009.65"
TWFRS FIRE AUTHORITY,SERVICES - FEES,NORTHUMBRIA  HEALTHCARE,1029802,5115208651,05.03.2024,REVENUE,"16,200.30"
TWFRS FIRE AUTHORITY,TRAINING EXPS - UNIFORM,NORTHUMBRIA POLICE,1038479,6000553889,28.03.2024,REVENUE,"-1,667.42"
TWFRS FIRE AUTHORITY,TRAINING EXPS - UNIFORM,NORTHUMBRIA POLICE,1038479,5115209178,28.03.2024,REVENUE,"1,320.00"
TWFRS FIRE AUTHORITY,EQUIPMENT-HYDRANTS/W.MAINS-REPLACEMENT,NORTHUMBRIAN WATER,1002507,6000553131,13.03.2024,REVENUE,"-1,611.46"
TWFRS FIRE AUTHORITY,EQUIPMENT-HYDRANTS/W.MAINS-REPLACEMENT,NORTHUMBRIAN WATER,1002507,6000552566,06.03.2024,REVENUE,-671.64
TWFRS FIRE AUTHORITY,EQUIPMENT-HYDRANTS/W.MAINS-REPLACEMENT,NORTHUMBRIAN WATER,1002507,5115208939,13.03.2024,REVENUE,519.00
TWFRS FIRE AUTHORITY,TRANSPORT REPAIRS & MAINTENANCE,PACKEXE,1033593,6000553220,15.03.2024,REVENUE,-959.76
TWFRS FIRE AUTHORITY,TRANSPORT REPAIRS & MAINTENANCE,PACKEXE,1033593,5115208966,15.03.2024,REVENUE,799.80
TWFRS FIRE AUTHORITY,"EDUCATIONAL EQUIP, SUPPLIES & ACCESSORIE",PELI PRODUCTS (UK) LTD,1008522,6000553731,26.03.2024,REVENUE,"-1,110.28"
TWFRS FIRE AUTHORITY,"EDUCATIONAL EQUIP, SUPPLIES & ACCESSORIE",PELI PRODUCTS (UK) LTD,1008522,5115209078,26.03.2024,REVENUE,925.23
TWFRS FIRE AUTHORITY,CLOTHING/PROTECTIVE CLOTHING,PGI SAFETY LTD,1045786,6000553812,27.03.2024,REVENUE,"-32,289.60"
TWFRS FIRE AUTHORITY,CLOTHING/PROTECTIVE CLOTHING,PGI SAFETY LTD,1045786,5115209157,27.03.2024,REVENUE,"26,908.00"
TWFRS FIRE AUTHORITY,TRAINING EXPS - CORPORATE,PHOENIX HSC (UK) LTD,1032992,6000552579,06.03.2024,REVENUE,-786.00
TWFRS FIRE AUTHORITY,TRAINING EXPS - CORPORATE,PHOENIX HSC (UK) LTD,1032992,5115208728,06.03.2024,REVENUE,655.00
TWFRS FIRE AUTHORITY,EQUIPMENT-PURCHASES FOR DISABILITY-REASO,POSTURITE LIMITED,1007595,6000553816,27.03.2024,REVENUE,"-2,328.13"
TWFRS FIRE AUTHORITY,EQUIPMENT-PURCHASES FOR DISABILITY-REASO,POSTURITE LIMITED,1007595,5115209062,27.03.2024,REVENUE,"1,082.28"
TWFRS FIRE AUTHORITY,EQUIPMENT - SPECIALIST,PRO CATERING EQUIPMENT,1045970,6000553675,25.03.2024,REVENUE,"-1,055.04"
TWFRS FIRE AUTHORITY,EQUIPMENT - SPECIALIST,PRO CATERING EQUIPMENT,1045970,5115209099,25.03.2024,REVENUE,879.19
TWFRS FIRE AUTHORITY,COMM & COMP - CONSUMABLES AND RUNNING CO,R S COMPONENTS,1004502,6000553313,19.03.2024,REVENUE,"-1,715.48"
TWFRS FIRE AUTHORITY,COMM & COMP - CONSUMABLES AND RUNNING CO,R S COMPONENTS,1004502,5115209004,19.03.2024,REVENUE,"1,429.57"
TWFRS FIRE AUTHORITY,CAP VEHICLES,"RADECAL SIGNS, GRAPHICS LTD",1011273,6000552778,08.03.2024,REVENUE,"-1,188.00"
TWFRS FIRE AUTHORITY,CAP VEHICLES,"RADECAL SIGNS, GRAPHICS LTD",1011273,6000553659,25.03.2024,REVENUE,"-1,056.00"
TWFRS FIRE AUTHORITY,CAP VEHICLES,"RADECAL SIGNS, GRAPHICS LTD",1011273,5115209049,25.03.2024,CAPITAL,880.00
TWFRS FIRE AUTHORITY,CAP VEHICLES,"RADECAL SIGNS, GRAPHICS LTD",1011273,5115208706,08.03.2024,REVENUE,990.00
TWFRS FIRE AUTHORITY,FIRE SAFETY,ROAD SAFEY GB,1044893,6000552796,08.03.2024,REVENUE,"-1,710.00"
TWFRS FIRE AUTHORITY,FIRE SAFETY,ROAD SAFEY GB,1044893,5115208754,08.03.2024,REVENUE,"1,425.00"
TWFRS FIRE AUTHORITY,EQUIPMENT MAINTENANCE / REPAIR,ROSENBAUER UK LTD,1032628,6000552578,06.03.2024,REVENUE,-521.38
TWFRS FIRE AUTHORITY,TRAINING EXPS - UNIFORM,RTITB LTD,1010262,6000552940,11.03.2024,REVENUE,"-1,314.00"
TWFRS FIRE AUTHORITY,TRAINING EXPS - UNIFORM,RTITB LTD,1010262,5115208819,11.03.2024,REVENUE,"1,095.00"
TWFRS FIRE AUTHORITY,TRAINING EQUIPMENT PURCHASED BY HQ TRAIN,RUTH LEE LIMITED,1014762,6000552941,11.03.2024,REVENUE,"-14,604.00"
TWFRS FIRE AUTHORITY,TRAINING EQUIPMENT PURCHASED BY HQ TRAIN,RUTH LEE LIMITED,1014762,5115208852,11.03.2024,REVENUE,"12,170.00"
TWFRS FIRE AUTHORITY,CLOTHING/PROTECTIVE CLOTHING,SAFEQUIP LIMITED,1017330,6000553135,13.03.2024,REVENUE,-612.00
TWFRS FIRE AUTHORITY,CLOTHING/PROTECTIVE CLOTHING,SAFEQUIP LIMITED,1017330,6000553174,14.03.2024,REVENUE,-606.00
TWFRS FIRE AUTHORITY,CLOTHING/PROTECTIVE CLOTHING,SAFEQUIP LIMITED,1017330,5115208934,13.03.2024,REVENUE,-510.00
TWFRS FIRE AUTHORITY,CLOTHING/PROTECTIVE CLOTHING,SAFEQUIP LIMITED,1017330,5115208926,14.03.2024,REVENUE,505.00
TWFRS FIRE AUTHORITY,CLOTHING/PROTECTIVE CLOTHING,SAFEQUIP LIMITED,1017330,5115208942,13.03.2024,REVENUE,510.00
TWFRS FIRE AUTHORITY,CLOTHING/PROTECTIVE CLOTHING,SAFEQUIP LIMITED,1017330,5115208925,13.03.2024,REVENUE,510.00
TWFRS FIRE AUTHORITY,CAP MAIN CONTRACTOR EXTERNAL,SAFETY BUYER (UK) LIMITED,1045630,6000552798,08.03.2024,REVENUE,-762.90
TWFRS FIRE AUTHORITY,CAP MAIN CONTRACTOR EXTERNAL,SAFETY BUYER (UK) LIMITED,1045630,5115208687,08.03.2024,CAPITAL,635.75
TWFRS FIRE AUTHORITY,CAP MAIN CONTRACTOR EXTERNAL,SAFETY MONITORS LIMITED,1047681,6000553742,26.03.2024,REVENUE,"-1,163.28"
TWFRS FIRE AUTHORITY,CAP MAIN CONTRACTOR EXTERNAL,SAFETY MONITORS LIMITED,1047681,5115209123,26.03.2024,REVENUE,969.40
TWFRS FIRE AUTHORITY,TRAINING EQUIPMENT PURCHASED BY HQ TRAIN,SCREWFIX,1024156,6000553136,13.03.2024,REVENUE,-900.36
TWFRS FIRE AUTHORITY,TRAINING EQUIPMENT PURCHASED BY HQ TRAIN,SCREWFIX,1024156,6000553664,25.03.2024,REVENUE,-883.74
TWFRS FIRE AUTHORITY,TRAINING EQUIPMENT PURCHASED BY HQ TRAIN,SCREWFIX,1024156,5115209105,25.03.2024,REVENUE,503.14
TWFRS FIRE AUTHORITY,TRAINING EQUIPMENT PURCHASED BY HQ TRAIN,SCREWFIX,1024156,5115208898,13.03.2024,REVENUE,750.30
TWFRS FIRE AUTHORITY,EQUIPMENT-OPERATIONAL,SHAWCITY LIMITED,1046327,6000552319,01.03.2024,REVENUE,"-3,203.99"
TWFRS FIRE AUTHORITY,EQUIPMENT-OPERATIONAL,SHAWCITY LIMITED,1046327,5115208521,01.03.2024,REVENUE,"2,669.99"
TWFRS FIRE AUTHORITY,TRAINING EQUIPMENT PURCHASED BY HQ TRAIN,SIGMA SECURITY DEVICES,1025046,6000553735,26.03.2024,REVENUE,"-1,188.00"
TWFRS FIRE AUTHORITY,TRAINING EQUIPMENT PURCHASED BY HQ TRAIN,SIGMA SECURITY DEVICES,1025046,5115209077,26.03.2024,REVENUE,990.00
TWFRS FIRE AUTHORITY,"REPAIRS, ALTERATIONS AND IMPROVEMENTS",SP SERVICES UK LTD,1044538,5115208761,06.03.2024,REVENUE,-439.60
TWFRS FIRE AUTHORITY,EQUIPMENT MAINTENANCE / REPAIR,SPEEDINGS LIMITED,1001304,6000552932,11.03.2024,REVENUE,-720.00
TWFRS FIRE AUTHORITY,EQUIPMENT MAINTENANCE / REPAIR,SPEEDINGS LIMITED,1001304,5115208789,11.03.2024,REVENUE,600.00
TWFRS FIRE AUTHORITY,SECURITY SERVICES - GENERAL,SSG SUPPORT SERVICES GROUP LTD.,1044235,6000552794,08.03.2024,REVENUE,"-7,977.05"
TWFRS FIRE AUTHORITY,SECURITY SERVICES - GENERAL,SSG SUPPORT SERVICES GROUP LTD.,1044235,5115208775,08.03.2024,REVENUE,"6,647.54"
TWFRS FIRE AUTHORITY,EQUIPMENT / CONSUMABLES PURCHASE,STARK BUILDING MATERIALS UK LIMITED,1007555,6000552573,06.03.2024,REVENUE,"-3,648.10"
TWFRS FIRE AUTHORITY,EQUIPMENT / CONSUMABLES PURCHASE,STARK BUILDING MATERIALS UK LIMITED,1007555,5115208627,06.03.2024,REVENUE,"3,040.08"
TWFRS FIRE AUTHORITY,INSURANCE - OTHER,STEER AUTOMOTIVE,1047258,6000552949,11.03.2024,REVENUE,"-2,323.86"
TWFRS FIRE AUTHORITY,INSURANCE - OTHER,STEER AUTOMOTIVE,1047258,5115208889,11.03.2024,REVENUE,"1,936.55"
TWFRS FIRE AUTHORITY,EQUIPMENT / CONSUMABLES PURCHASE,SUEZ RECYCLING AND RECOVERY UK LTD,1000636,6000552930,11.03.2024,REVENUE,-727.83
TWFRS FIRE AUTHORITY,PROFESSIONAL EXPERTS / SPECIALIST SERVIC,SUNDERLAND CITY COUNCIL,1008231,6000552306,01.03.2024,REVENUE,-792.00
TWFRS FIRE AUTHORITY,PROFESSIONAL EXPERTS / SPECIALIST SERVIC,SUNDERLAND CITY COUNCIL,1008231,6000552575,06.03.2024,REVENUE,-712.80
TWFRS FIRE AUTHORITY,PROFESSIONAL EXPERTS / SPECIALIST SERVIC,SUNDERLAND CITY COUNCIL,1008231,5115208749,06.03.2024,REVENUE,594.00
TWFRS FIRE AUTHORITY,PROFESSIONAL EXPERTS / SPECIALIST SERVIC,SUNDERLAND CITY COUNCIL,1008231,5115208618,01.03.2024,REVENUE,660.00
TWFRS FIRE AUTHORITY,COMMUNICATION - MAINTENANCE / REPAIR COS,TELENT TECHNOLOGY SERVICES LIMITED,1035438,6000553900,28.03.2024,REVENUE,"-44,897.48"
TWFRS FIRE AUTHORITY,COMMUNICATION - MAINTENANCE / REPAIR COS,TELENT TECHNOLOGY SERVICES LIMITED,1035438,6000553221,15.03.2024,REVENUE,"-3,836.57"
TWFRS FIRE AUTHORITY,COMMUNICATION - MAINTENANCE / REPAIR COS,TELENT TECHNOLOGY SERVICES LIMITED,1035438,5115208940,15.03.2024,REVENUE,"3,197.14"
TWFRS FIRE AUTHORITY,COMMUNICATION - MAINTENANCE / REPAIR COS,TELENT TECHNOLOGY SERVICES LIMITED,1035438,5115209162,28.03.2024,REVENUE,"7,850.62"
TWFRS FIRE AUTHORITY,COMMUNICATION - MAINTENANCE / REPAIR COS,TELENT TECHNOLOGY SERVICES LIMITED,1035438,5115209165,28.03.2024,REVENUE,"29,563.95"
TWFRS FIRE AUTHORITY,TRAINING EQUIPMENT PURCHASED BY HQ TRAIN,TEMPLETOWN SALVAGE LTD,1009363,6000553315,19.03.2024,REVENUE,"-3,600.00"
TWFRS FIRE AUTHORITY,TRAINING EQUIPMENT PURCHASED BY HQ TRAIN,TEMPLETOWN SALVAGE LTD,1009363,6000553817,27.03.2024,REVENUE,"-1,440.00"
TWFRS FIRE AUTHORITY,TRAINING EQUIPMENT PURCHASED BY HQ TRAIN,TEMPLETOWN SALVAGE LTD,1009363,5115209148,27.03.2024,REVENUE,"1,200.00"
TWFRS FIRE AUTHORITY,TRAINING EQUIPMENT PURCHASED BY HQ TRAIN,TEMPLETOWN SALVAGE LTD,1009363,5115209016,19.03.2024,REVENUE,"3,000.00"
TWFRS FIRE AUTHORITY,EQUIPMENT MAINTENANCE / REPAIR,TERBERG DTS (UK) LTD,1037448,6000552581,06.03.2024,REVENUE,"-2,397.58"
TWFRS FIRE AUTHORITY,EQUIPMENT MAINTENANCE / REPAIR,TERBERG DTS (UK) LTD,1037448,6000552312,01.03.2024,REVENUE,-895.17
TWFRS FIRE AUTHORITY,EQUIPMENT MAINTENANCE / REPAIR,TERBERG DTS (UK) LTD,1037448,5115208617,06.03.2024,REVENUE,"1,997.98"
TWFRS FIRE AUTHORITY,TRAINING,THE COMMISION FOR LOCAL ADMINISTRAT,1044911,6000552483,05.03.2024,REVENUE,-550.00
TWFRS FIRE AUTHORITY,TRAINING,THE COMMISION FOR LOCAL ADMINISTRAT,1044911,5115208648,05.03.2024,REVENUE,550.00
TWFRS FIRE AUTHORITY,TRANSPORT EXPENSES - SPECIALIST CONTRACT,THORNTON BROTHERS LTD,1021979,6000553318,19.03.2024,REVENUE,"-6,939.19"
TWFRS FIRE AUTHORITY,TRANSPORT EXPENSES - SPECIALIST CONTRACT,THORNTON BROTHERS LTD,1021979,5115209001,19.03.2024,REVENUE,"5,782.67"
TWFRS FIRE AUTHORITY,AGENCY PAYMENTS,TYPEITWRITE LTD,1039628,6000552792,08.03.2024,REVENUE,-535.69
TWFRS FIRE AUTHORITY,COMM & COMP - HARDWARE AND SOFTWARE,UNIVERSAL SYSTEM SOLUTIONS (SECURIT,1023967,6000553734,26.03.2024,REVENUE,"-1,081.43"
TWFRS FIRE AUTHORITY,COMM & COMP - HARDWARE AND SOFTWARE,UNIVERSAL SYSTEM SOLUTIONS (SECURIT,1023967,5115209093,26.03.2024,REVENUE,901.19
TWFRS FIRE AUTHORITY,TRAINING EXPS - UNIFORM,UNIVERSITY OF CENTRAL LANCASHIRE,1011557,6000553436,21.03.2024,REVENUE,-933.00
TWFRS FIRE AUTHORITY,TRAINING EXPS - UNIFORM,UNIVERSITY OF CENTRAL LANCASHIRE,1011557,5115208984,21.03.2024,REVENUE,933.00
TWFRS FIRE AUTHORITY,TELEPHONES - GENERAL,VODAFONE LIMITED,1037378,6000552660,07.03.2024,REVENUE,"-1,658.74"
TWFRS FIRE AUTHORITY,TELEPHONES - GENERAL,VODAFONE LIMITED,1037378,5115208773,07.03.2024,REVENUE,"1,382.28"
TWFRS FIRE AUTHORITY,TRANSPORT RUNNING COSTS,VOLVO BUS & TRUCK LIMITED,1000885,5115208914,15.03.2024,REVENUE,532.25
TWFRS FIRE AUTHORITY,TRANSPORT RUNNING COSTS,VOLVO BUS & TRUCK LIMITED,1000885,5115209112,25.03.2024,REVENUE,547.61
TWFRS FIRE AUTHORITY,TRANSPORT RUNNING COSTS,VOLVO BUS & TRUCK LIMITED,1000885,5115208392,06.03.2024,REVENUE,582.59
TWFRS FIRE AUTHORITY,TRANSPORT RUNNING COSTS,VOLVO BUS & TRUCK LIMITED,1000885,5115208626,04.03.2024,REVENUE,734.57
TWFRS FIRE AUTHORITY,TRANSPORT RUNNING COSTS,VOLVO BUS & TRUCK LIMITED,1000885,5115208739,08.03.2024,REVENUE,807.59
TWFRS FIRE AUTHORITY,TRANSPORT RUNNING COSTS,VOLVO BUS & TRUCK LIMITED,1000885,5115208604,01.03.2024,REVENUE,844.61
TWFRS FIRE AUTHORITY,TRANSPORT RUNNING COSTS,VOLVO BUS & TRUCK LIMITED,1000885,5115209177,28.03.2024,REVENUE,"1,016.57"
TWFRS FIRE AUTHORITY,TRANSPORT RUNNING COSTS,VOLVO BUS & TRUCK LIMITED,1000885,5115208423,15.03.2024,REVENUE,"1,160.40"
TWFRS FIRE AUTHORITY,TRANSPORT RUNNING COSTS,VOLVO BUS & TRUCK LIMITED,1000885,5115208743,08.03.2024,REVENUE,"1,393.01"
TWFRS FIRE AUTHORITY,TRANSPORT REPAIRS & MAINTENANCE,VOLVO GROUP UK LTD,1000017,6000552768,08.03.2024,REVENUE,"-2,712.80"
TWFRS FIRE AUTHORITY,TRANSPORT REPAIRS & MAINTENANCE,VOLVO GROUP UK LTD,1000017,6000553213,15.03.2024,REVENUE,"-2,651.97"
TWFRS FIRE AUTHORITY,TRANSPORT REPAIRS & MAINTENANCE,VOLVO GROUP UK LTD,1000017,6000552295,01.03.2024,REVENUE,"-1,885.06"
TWFRS FIRE AUTHORITY,TRANSPORT REPAIRS & MAINTENANCE,VOLVO GROUP UK LTD,1000017,6000553875,28.03.2024,REVENUE,"-1,323.85"
TWFRS FIRE AUTHORITY,TRANSPORT REPAIRS & MAINTENANCE,VOLVO GROUP UK LTD,1000017,6000552382,04.03.2024,REVENUE,"-1,218.16"
TWFRS FIRE AUTHORITY,TRANSPORT REPAIRS & MAINTENANCE,VOLVO GROUP UK LTD,1000017,6000552560,06.03.2024,REVENUE,-798.23
TWFRS FIRE AUTHORITY,TRANSPORT REPAIRS & MAINTENANCE,VOLVO GROUP UK LTD,1000017,6000553650,25.03.2024,REVENUE,-657.13
TWFRS FIRE AUTHORITY,LEGAL FEES / COURT FEES,WARD HADAWAY,1006329,6000553656,25.03.2024,REVENUE,-628.80
TWFRS FIRE AUTHORITY,LEGAL FEES / COURT FEES,WARD HADAWAY,1006329,5115209089,25.03.2024,REVENUE,524.00
TWFRS FIRE AUTHORITY,OPERATIONAL EQUIPMENT,WEL MEDICAL LTD,1043458,6000553673,25.03.2024,REVENUE,-611.82
TWFRS FIRE AUTHORITY,OPERATIONAL EQUIPMENT,WEL MEDICAL LTD,1043458,6000553386,20.03.2024,REVENUE,-539.89
TWFRS FIRE AUTHORITY,OPERATIONAL EQUIPMENT,WEL MEDICAL LTD,1043458,5115209048,25.03.2024,REVENUE,509.85
TWFRS FIRE AUTHORITY,"REPAIRS, ROUTINE STATIC FIXED PLANT -P",XYLEM WATER SOLUTIONS UK LTD,1035451,6000553886,28.03.2024,REVENUE,"-1,015.20"
TWFRS FIRE AUTHORITY,"REPAIRS, ROUTINE STATIC FIXED PLANT -P",XYLEM WATER SOLUTIONS UK LTD,1035451,5115209170,28.03.2024,REVENUE,846.00
TWFRS FIRE AUTHORITY,PETROL/DIESEL/FUEL,YOUR NRG LTD,1040323,6000552313,01.03.2024,REVENUE,"-7,039.56"
TWFRS FIRE AUTHORITY,PETROL/DIESEL/FUEL,YOUR NRG LTD,1040323,6000553263,18.03.2024,REVENUE,"-4,263.48"
TWFRS FIRE AUTHORITY,PETROL/DIESEL/FUEL,YOUR NRG LTD,1040323,5115208896,11.03.2024,REVENUE,"-2,383.60"
TWFRS FIRE AUTHORITY,PETROL/DIESEL/FUEL,YOUR NRG LTD,1040323,5115208657,01.03.2024,REVENUE,"2,383.60"
TWFRS FIRE AUTHORITY,PETROL/DIESEL/FUEL,YOUR NRG LTD,1040323,5115208897,11.03.2024,REVENUE,"2,383.60"
TWFRS FIRE AUTHORITY,PETROL/DIESEL/FUEL,YOUR NRG LTD,1040323,5115208658,01.03.2024,REVENUE,"3,482.70"
TWFRS FIRE AUTHORITY,PETROL/DIESEL/FUEL,YOUR NRG LTD,1040323,5115208994,18.03.2024,REVENUE,"3,552.90"
TWFRS FIRE AUTHORITY,TRAVEL AND ACCOMMODATION,CLICK TRAVEL,1038732,6005333734,31.03.2024,REVENUE,"6,484.85"
TWFRS FIRE AUTHORITY,TRAVEL AND ACCOMMODATION,CLICK TRAVEL CREDIT,1038732,6005333734,31.03.2024,REVENUE,-104.40
